Workbook

Sheet Cover
B3: Excel + VBA
B4: Stochastik
B7: Kapitel | C7: 6
B8: Thema | C8: Beobachtungen und Messungen
B10: Inhalt | C10: Trendbestimmung
B18: Version | C18: 1.0
B19: Autor | C19: Harald Nahrstedt
B20: Letzte Bearbeitung | C20: 2021-10-15
B23: Springer Vieweg Verlag

Sheet Umsatzplanung
B1: Realisierte Umsätze | H1: Erwartete Umsätze
A2: Monat | B2: Jan | C2: Feb | D2: Mrz | E2: Apr | F2: Mai | G2: Jun | H2: Jul | I2: Aug | J2: Sep | K2: Okt | L2: Nov | M2: Dez
A3: Produkt A | B3: 2319.96 | C3: 2765 | D3: 2346.145 | E3: 2910.66 | F3: 2833.56 | G3: 2918.51 | H3: 3058.600333 | I3: 3166.113048 | J3: 3273.625762 | K3: 3381.138476 | L3: 3488.65119 | M3: 3596.163905
A4: Produkt B | B4: 1874.351 | C4: 2098.732 | D4: 1984.234 | E4: 1389.063 | F4: 2408.563 | G4: 2397.867 | H4: 2320.658533 | I4: 2404.99859 | J4: 2489.338648 | K4: 2573.678705 | L4: 2658.018762 | M4: 2742.358819

Sheet Umsatzszenario
B1: Realisierte Umsätze | H1: Erwartete Umsätze
A2: Monat | B2: 1 | C2: 2 | D2: 3 | E2: 4 | F2: 5 | G2: 6 | H2: 7 | I2: 8 | J2: 9 | K2: 10 | L2: 11 | M2: 12
A3: Produkt A | B3: 2319.96 | C3: 2765 | D3: 2346.145 | E3: 2910.66 | F3: 2833.56 | G3: 2918.51
G4: 2918.51 | H4: =TREND(ProduktA,Halbjahr1,H2) -> 3058.600333 | I4: 3166.113048 | J4: 3273.625762 | K4: 3381.138476 | L4: 3488.65119 | M4: 3596.163905
A5: Produkt B | B5: 1874.351 | C5: 2098.732 | D5: 1984.234 | E5: 1389.063 | F5: 2408.563 | G5: 2397.867
A6: Planung B | G6: 2397.867 | H6: =TREND(ProduktB,Halbjahr1,H2) -> 2320.658533 | I6: 2404.99859 | J6: 2489.338648 | K6: 2573.678705 | L6: 2658.018762 | M6: 2742.358819

Sheet Forecast
A1: Monat | B1: Plan | C1: Ist | D1: Übertrag | E1: Trend | F1: Variation | G1: Mittelwert
A2: 1900-01-01 | B2: 3450 | C2: 3340 | D2: 3340 | E2: =IF(C2="",TREND($E1:E$2,$A1:A$2,A2),C2) -> 3340 | F2: =IF(C2="",GROWTH($F1:F$2,$A1:A$2,A2),C2) -> 3340 | G2: =IF(C2="",AVERAGE($G1:G$2)*(B2/B1),C2) -> 3340
A3: 1900-01-02 | B3: 4680 | C3: 3850 | D3: 3850 | E3: =IF(C3="",TREND($E$2:E2,$A$2:A2,A3),C3) -> 3850 | F3: =IF(C3="",GROWTH($F$2:F2,$A$2:A2,A3),C3) -> 3850 | G3: =IF(C3="",AVERAGE($G$2:G2)*(B3/B2),C3) -> 3850
A4: 1900-01-03 | B4: 3820 | C4: 3760 | D4: 3760 | E4: =IF(C4="",TREND($E$2:E3,$A$2:A3,A4),C4) -> 3760 | F4: =IF(C4="",GROWTH($F$2:F3,$A$2:A3,A4),C4) -> 3760 | G4: =IF(C4="",AVERAGE($G$2:G3)*(B4/B3),C4) -> 3760
A5: 1900-01-04 | B5: 4260 | C5: 3990 | D5: 3990 | E5: =IF(C5="",TREND($E$2:E4,$A$2:A4,A5),C5) -> 3990 | F5: =IF(C5="",GROWTH($F$2:F4,$A$2:A4,A5),C5) -> 3990 | G5: =IF(C5="",AVERAGE($G$2:G4)*(B5/B4),C5) -> 3990
A6: 1900-01-05 | B6: 4970 | C6: 3890 | D6: 3890 | E6: =IF(C6="",TREND($E$2:E5,$A$2:A5,A6),C6) -> 3890 | F6: =IF(C6="",GROWTH($F$2:F5,$A$2:A5,A6),C6) -> 3890 | G6: =IF(C6="",AVERAGE($G$2:G5)*(B6/B5),C6) -> 3890
A7: 1900-01-06 | B7: 5210 | C7: 4020 | D7: 4020 | E7: =IF(C7="",TREND($E$2:E6,$A$2:A6,A7),C7) -> 4020 | F7: =IF(C7="",GROWTH($F$2:F6,$A$2:A6,A7),C7) -> 4020 | G7: =IF(C7="",AVERAGE($G$2:G6)*(B7/B6),C7) -> 4020
A8: 1900-01-07 | B8: 5050 | D8: 4183.333333 | E8: =IF(C8="",TREND($E$2:E7,$A$2:A7,A8),C8) -> 4183.333333 | F8: =IF(C8="",GROWTH($F$2:F7,$A$2:A7,A8),C8) -> 4208.127518 | G8: =IF(C8="",AVERAGE($G$2:G7)*(B8/B7),C8) -> 3691.378759
A9: 1900-01-08 | B9: 4930 | D9: 4290.47619 | E9: =IF(C9="",TREND($E$2:E8,$A$2:A8,A9),C9) -> 4290.47619 | F9: =IF(C9="",GROWTH($F$2:F8,$A$2:A8,A9),C9) -> 4332.189561 | G9: =IF(C9="",AVERAGE($G$2:G8)*(B9/B8),C9) -> 3701.527504
A10: 1900-01-09 | B10: 5360 | D10: 4397.619048 | E10: =IF(C10="",TREND($E$2:E9,$A$2:A9,A10),C10) -> 4397.619048 | F10: =IF(C10="",GROWTH($F$2:F9,$A$2:A9,A10),C10) -> 4459.909144 | G10: =IF(C10="",AVERAGE($G$2:G9)*(B10/B9),C10) -> 4110.090709
A11: 1900-01-10 | B11: 5280 | D11: 4504.761905 | E11: =IF(C11="",TREND($E$2:E10,$A$2:A10,A11),C11) -> 4504.761905 | F11: =IF(C11="",GROWTH($F$2:F10,$A$2:A10,A11),C11) -> 4591.394096 | G11: =IF(C11="",AVERAGE($G$2:G10)*(B11/B10),C11) -> 3760.029519
A12: 1900-01-11 | B12: 5490 | D12: 4611.904762 | E12: =IF(C12="",TREND($E$2:E11,$A$2:A11,A12),C12) -> 4611.904762 | F12: =IF(C12="",GROWTH($F$2:F11,$A$2:A11,A12),C12) -> 4726.755426 | G12: =IF(C12="",AVERAGE($G$2:G11)*(B12/B11),C12) -> 3962.88855
A13: 1900-01-12 | B13: 5510 | D13: 4719.047619 | E13: =IF(C13="",TREND($E$2:E12,$A$2:A12,A13),C13) -> 4719.047619 | F13: =IF(C13="",GROWTH($F$2:F12,$A$2:A12,A13),C13) -> 4866.107414 | G13: =IF(C13="",AVERAGE($G$2:G12)*(B13/B12),C13) -> 3839.017915
A14: Gesamt | B14: =SUM(B2:B13) -> 58010 | C14: =SUM(C2:C13) -> 22850 | D14: =SUM(D2:D13) -> 49557.14286 | E14: =SUM(E2:E13) -> 49557.14286 | F14: =SUM(F2:F13) -> 50034.48316 | G14: 45914.93296
